bitfinex/quotes_SOLUSD_20240725
["timestamp","ask_amount","ask_price","bid_price","bid_amount"]
[1721866048365,5.6051,178.41,178.31,20.0]
[1721866048680,5.6051,178.41,178.31,21.12132066]
[1721866048873,5.6046,178.43,178.31,20.0]
[1721866049078,5.6046,178.43,178.33,15.3895]
[1721866049273,5.6046,178.43,178.34,20.0]
[1721866049580,5.6047,178.42,178.34,21.12127747]
[1721866049758,0.91256494,178.41,178.34,20.0]
[1721866050459,25.36256494,178.41,178.29,15.7116]
[1721866050653,5.6057,178.39,178.3,20.0]
[1721866050855,0.91256494,178.38,178.3,20.0]
[1721866051379,6.51866494,178.38,178.29,15.7116]
[1721866051870,5.6066,178.36,178.29,15.7116]
[1721866052057,0.91256494,178.35,178.29,15.7116]
[1721866052650,0.91256494,178.35,178.3,20.0]
[1721866052847,5.6069,178.35,178.24,15.7116]
[1721866053075,0.91256494,178.34,178.24,15.7116]
[1721866053370,5.6075,178.33,178.24,15.7116]
[1721866053576,0.91256494,178.32,178.24,15.7116]
[1721866054453,0.91256494,178.34,178.24,15.7116]
[1721866054651,16.84,178.33,178.24,15.7116]
[1721866054871,5.6082,178.31,178.22,6.3365]
[1721866055075,0.91256494,178.3,178.22,6.3365]
[1721866055259,0.91256494,178.29,178.22,6.3365]
[1721866056255,0.91256494,178.29,178.23,20.0]
[1721866056979,5.6098,178.26,178.19,15.3039]
[1721866057156,0.91256494,178.29,178.15,16.5462]
[1721866057157,0.91256494,178.25,178.15,16.5462]
[1721866057349,0.91256494,178.25,178.16,30.0]
[1721866057547,0.91256494,178.25,178.15,16.5462]
[1721866057762,16.84,178.24,178.15,16.5462]
[1721866057963,51.52336494,178.23,178.13,6.2027]
[1721866058250,87.20256494,178.23,178.13,6.2027]
[1721866058446,87.20256494,178.23,178.11,15.2496]
[1721866058700,22.4516,178.21,178.11,15.2496]
[1721866058886,22.452,178.19,178.08,6.328]
[1721866059176,45.91256494,178.18,178.08,6.328]
[1721866059376,0.91256494,178.17,178.08,6.328]
[1721866059585,15.5462,178.19,178.08,6.328]
[1721866059880,0.91256494,178.19,178.08,6.328]
[1721866060069,0.91256494,178.21,178.08,6.328]
[1721866060377,0.91256494,178.2,178.08,7.45067304]
[1721866060547,6.52366494,178.22,178.09,20.0]
[1721866061068,5.6111,178.22,178.09,20.0]
[1721866061258,385.0,178.25,178.09,20.0]
[1721866061259,0.91256494,178.21,178.09,20.0]
[1721866061579,390.6102,178.25,178.1,46.12246107]
[1721866061580,0.91256494,178.24,178.1,46.12246107]
[1721866061877,0.91256494,178.23,178.11,20.0]
[1721866062074,0.91256494,178.24,178.12,45.0]
[1721866062373,385.0,178.25,178.13,20.0]
[1721866062747,5.61,178.26,178.13,20.0]
[1721866062975,0.91256494,178.25,178.14,16.2294]
[1721866063172,25.36256494,178.25,178.15,20.0]
[1721866063360,5.611,178.22,178.15,20.0]
[1721866063563,0.91256494,178.21,178.15,20.0]
[1721866063759,0.91256494,178.24,178.15,20.0]
[1721866063969,31.9824,178.27,178.15,20.0]
[1721866063970,15.1424,178.27,178.15,20.0]
[1721866064175,0.91256494,178.26,178.15,20.0]
[1721866064469,0.91256494,178.28,178.16,6.5479]
[1721866064651,0.91256494,178.28,178.17,45.0]
[1721866064853,0.91256494,178.28,178.18,20.0]
[1721866065460,265.1084,178.31,178.18,21.12212169]
[1721866065655,0.91256494,178.3,178.19,45.0]
[1721866065874,5.6088,178.29,178.2,20.0]
[1721866066273,0.91256494,178.31,178.17,21.12215948]
[1721866066579,0.91256494,178.31,178.18,30.0]
[1721866066786,5.6085,178.3,178.19,20.0]
[1721866066955,0.91256494,178.29,178.19,20.0]
[1721866067155,24.45,178.35,178.21,15.2568]
[1721866067369,30.057,178.35,178.22,65.0]
[1721866067579,30.057,178.35,178.22,95.0]
[1721866067760,0.91256494,178.34,178.22,95.0]
[1721866068352,0.91256494,178.34,178.22,65.0]
[1721866068555,6.51976494,178.34,178.22,65.0]
[1721866068754,30.9136,178.38,178.24,6.2354]
[1721866068956,390.6065,178.37,178.25,65.0]
[1721866069194,5.6067,178.36,178.25,65.0]
[1721866069353,385.0,178.37,178.25,65.0]
[1721866069557,14.0104,178.44,178.27,16.0456]
[1721866069789,31.82616494,178.42,178.28,65.0]
[1721866070288,25.36256494,178.42,178.28,65.0]
[1721866070493,40.57366494,178.45,178.3,6.6237]
[1721866070699,40.57366494,178.45,178.31,66.1211951]
[1721866071200,30.96646494,178.45,178.32,1.12123275]
[1721866071502,30.96646494,178.45,178.33,1.12103134]
[1721866071503,0.91256494,178.45,178.33,1.12103134]
[1721866071791,5.6033,178.47,178.33,66.12103134]
[1721866071990,0.91256494,178.47,178.33,66.12103134]
[1721866072201,385.0,178.5,178.36,6.0536]
[1721866072379,5.6019,178.51,178.37,66.12070235]
[1721866072700,24.45,178.54,178.38,24.45]
[1721866072865,16.366,178.57,178.38,24.45]
[1721866072866,0.91256494,178.56,178.4,16.3402]
[1721866073066,24.45,178.57,178.41,90.57037007]
[1721866073267,5.6007,178.55,178.41,90.57037007]
[1721866073572,5.6007,178.55,178.41,120.57037007]
[1721866073881,385.0,178.58,178.42,6.1727]
[1721866074191,5.5999,178.58,178.43,66.12023223]
[1721866074407,0.91256494,178.61,178.43,66.12023223]
[1721866074571,0.91256494,178.6,178.43,86.12023223]
[1721866074886,0.91256494,178.6,178.43,96.12023223]
[1721866075279,5.5998,178.58,178.43,96.12023223]
[1721866075598,0.91256494,178.6,178.43,96.12023223]
[1721866075893,0.91256494,178.59,178.43,96.12023223]
[1721866076264,5.5994,178.59,178.43,116.12023223]
[1721866076989,0.91256494,178.61,178.43,96.12023223]
[1721866077182,1.70643064,178.63,178.45,20.0]
[1721866077372,0.7938657,178.63,178.47,15.9309]
[1721866077574,5.5988,178.61,178.48,66.11996517]
[1721866077894,6.3920657,178.63,178.5,6.0212]
[1721866078073,6.3920657,178.63,178.51,66.11982638]
[1721866078392,6.3920657,178.63,178.52,1.11980071]
[1721866078393,5.5986,178.62,178.52,1.11980071]
[1721866078587,5.5986,178.62,178.51,66.11982433]
[1721866078794,0.7938657,178.63,178.52,1.11987787]
[1721866078981,6.3920657,178.63,178.52,1.11984959]
[1721866079181,0.7938657,178.63,178.52,1.11984959]
[1721866079394,0.7938657,178.63,178.52,1.11981515]
[1721866079584,6.3920657,178.63,178.51,65.0]
[1721866079903,6.3920657,178.63,178.52,1.11971966]
[1721866079904,0.7938657,178.63,178.52,1.11971966]
[1721866080396,0.7938657,178.63,178.51,65.0]
[1721866080571,0.7938657,178.63,178.52,1.11990051]
[1721866080986,0.7938657,178.63,178.52,31.11990051]
[1721866081172,0.7938657,178.63,178.53,20.0]
[1721866082103,0.7938657,178.63,178.53,50.0]
[1721866082295,0.7938657,178.63,178.54,46.11973931]
[1721866082493,0.7938657,178.63,178.54,46.11961573]
[1721866082672,0.7938657,178.63,178.55,20.0]
[1721866082880,0.7938657,178.63,178.56,45.0]
[1721866083175,0.7938657,178.63,178.57,35.5966]
[1721866085302,0.7938657,178.63,178.57,20.0]
[1721866085674,0.7938657,178.63,178.54,20.0]
[1721866085876,0.7938657,178.63,178.55,45.0]
[1721866086077,0.7938657,178.63,178.56,20.0]
[1721866086803,0.7938657,178.63,178.57,45.0]
[1721866086980,0.7938657,178.63,178.58,20.0]
[1721866087395,0.7938657,178.63,178.59,52.14176006]
[1721866087790,0.7938657,178.63,178.6,20.0]
[1721866090207,0.7938657,178.63,178.54,6.0221]
[1721866090507,0.7938657,178.63,178.55,20.0]
[1721866091907,0.7938657,178.63,178.54,6.0221]
[1721866092083,0.91256494,178.62,178.54,6.0221]
[1721866092488,6.51096494,178.62,178.54,6.0221]
[1721866092685,5.5984,178.62,178.54,6.0221]
[1721866092996,0.7938657,178.63,178.54,6.0221]
[1721866093507,5.5988,178.61,178.54,6.0221]
[1721866094097,0.91256494,178.6,178.54,6.0221]
[1721866094300,0.91256494,178.6,178.5,6.0573]
[1721866094500,5.5997,178.58,178.5,6.0573]
[1721866094812,0.91256494,178.62,178.5,6.0573]
[1721866094994,45.91256494,178.62,178.5,6.0573]
[1721866095199,45.0,178.62,178.5,6.0573]
[1721866095391,0.91256494,178.61,178.5,6.0573]
[1721866095711,6.51136494,178.61,178.51,20.0]
[1721866096620,5.6003,178.56,178.51,20.0]
[1721866097184,5.5999,178.58,178.51,20.0]
[1721866097413,5.5993,178.6,178.51,20.0]
[1721866097913,0.91256494,178.59,178.51,20.0]
[1721866098086,5.6,178.57,178.51,20.0]
[1721866099014,0.91256494,178.62,178.51,20.0]
[1721866099188,5.599,178.61,178.51,20.0]
[1721866100189,5.5984,178.62,178.51,20.0]
[1721866100503,0.91256494,178.62,178.51,20.0]
[1721866100715,5.5998,178.58,178.51,20.0]
[1721866100903,5.5994,178.6,178.51,20.0]
[1721866101101,25.2338657,178.63,178.51,20.0]
[1721866101102,0.91256494,178.59,178.51,20.0]
[1721866101909,6.51196494,178.59,178.51,20.0]
[1721866102130,5.5994,178.59,178.51,20.0]
[1721866102426,6.51246494,178.58,178.51,20.0]
[1721866103022,16.84,178.62,178.51,20.0]
[1721866103023,5.5995,178.59,178.51,20.0]
[1721866103320,5.5997,178.58,178.51,20.0]
[1721866103812,5.5994,178.59,178.51,20.0]
[1721866104194,5.6002,178.57,178.51,20.0]
[1721866104388,6.51276494,178.57,178.51,20.0]
[1721866105416,5.6002,178.57,178.51,20.0]
[1721866105596,0.7938657,178.63,178.51,20.0]
[1721866105793,0.91256494,178.61,178.51,20.0]
[1721866105996,6.51136494,178.61,178.51,20.0]
[1721866106902,5.5991,178.6,178.51,20.0]
[1721866107790,5.6001,178.57,178.51,20.0]
[1721866107990,5.6013,178.53,178.5,6.0573]
[1721866108197,24.44,178.57,178.48,15.2042]
[1721866108198,16.84,178.56,178.48,15.2042]
[1721866108407,50.6008,178.55,178.48,15.2042]
[1721866108718,5.6003,178.57,178.48,15.2042]
[1721866108909,5.6004,178.56,178.48,15.2042]
[1721866109103,0.91256494,178.59,178.48,15.2042]
[1721866109315,65.91256494,178.59,178.49,20.0]
[1721866109502,82.75256494,178.59,178.49,20.0]
[1721866109701,5.601,178.54,178.49,20.0]
[1721866110014,5.5994,178.59,178.49,20.0]
[1721866110196,0.91256494,178.59,178.49,20.0]
[1721866110599,5.6011,178.54,178.49,20.0]
[1721866110811,0.91256494,178.58,178.49,20.0]
[1721866111013,5.6006,178.55,178.49,20.0]
[1721866111234,0.91256494,178.57,178.49,20.0]
[1721866111235,6.51286494,178.57,178.49,20.0]
[1721866111524,5.5997,178.59,178.49,20.0]
[1721866111891,5.5994,178.59,178.49,20.0]
[1721866112220,5.5997,178.58,178.49,20.0]
[1721866112401,6.51266494,178.57,178.49,20.0]
[1721866113525,5.5993,178.6,178.5,45.0]
[1721866113820,0.91256494,178.61,178.51,20.0]
[1721866113821,5.5997,178.58,178.51,20.0]
[1721866114222,42.19256494,178.61,178.51,20.0]
[1721866114412,0.91256494,178.6,178.49,20.0]
[1721866114996,5.5994,178.59,178.49,20.0]
[1721866115212,41.28,178.61,178.49,20.0]
[1721866115407,5.5992,178.6,178.5,6.3044]
[1721866115899,5.5994,178.59,178.51,20.0]
[1721866116099,5.5998,178.58,178.51,20.0]
[1721866116825,0.91256494,178.57,178.51,20.0]
[1721866117011,5.5998,178.58,178.51,20.0]
[1721866117914,0.91256494,178.57,178.51,20.0]
[1721866119330,6.51136494,178.61,178.51,20.0]
[1721866119497,6.51166494,178.6,178.51,20.0]
[1721866119702,5.5994,178.59,178.51,20.0]
[1721866119914,0.91256494,178.58,178.51,20.0]
[1721866120119,0.91256494,178.57,178.51,20.0]
[1721866120498,0.91256494,178.58,178.51,20.0]
[1721866120699,6.51196494,178.59,178.51,20.0]
[1721866120912,5.5997,178.58,178.51,20.0]
[1721866121114,0.91256494,178.57,178.51,20.0]
[1721866121630,0.91256494,178.61,178.51,20.0]
[1721866121923,6.51166494,178.6,178.51,20.0]
[1721866122225,5.5991,178.6,178.51,20.0]
[1721866123326,5.5994,178.59,178.51,20.0]
[1721866124409,5.5991,178.6,178.51,20.0]
[1721866124615,6.51196494,178.59,178.51,20.0]
[1721866124803,5.5994,178.59,178.51,20.0]
[1721866125321,0.91256494,178.61,178.51,20.0]
[1721866125519,0.91256494,178.6,178.51,20.0]
[1721866126706,6.51186494,178.6,178.51,20.0]
[1721866127026,0.91256494,178.6,178.51,20.0]
[1721866127513,11.01517502,178.6,178.51,20.0]
[1721866127712,5.5995,178.59,178.51,20.0]
[1721866128233,6.3922657,178.63,178.51,20.0]
[1721866128423,11.01487155,178.62,178.51,20.0]
[1721866128733,10.10230661,178.61,178.51,20.0]
[1721866130713,0.7938657,178.63,178.53,16.0292]
[1721866131233,10.89595144,178.63,178.54,20.0]
[1721866131409,10.10208574,178.62,178.54,20.0]
[1721866131609,0.7938657,178.63,178.55,7.29919384]
[1721866131832,0.7938657,178.63,178.56,20.0]
[1721866132018,0.7938657,178.63,178.57,1.11979924]
[1721866132213,0.7938657,178.63,178.58,1.11979941]
[1721866132911,0.7938657,178.63,178.56,20.0]
[1721866134630,6.3920657,178.63,178.56,20.0]
[1721866134827,0.7938657,178.63,178.56,20.0]
[1721866137445,6.3919657,178.63,178.56,20.0]
[1721866138441,0.7938657,178.63,178.56,20.0]
[1721866139822,6.3920657,178.63,178.56,20.0]
[1721866140009,5.5984,178.62,178.56,20.0]
[1721866140217,6.51146494,178.61,178.56,20.0]
[1721866140433,0.91256494,178.6,178.55,6.1793]
[1721866141122,5.5997,178.58,178.51,6.0251]
[1721866141308,5.6002,178.57,178.51,6.0251]
[1721866141511,0.91256494,178.61,178.51,6.0251]
[1721866141832,17.75256494,178.61,178.51,6.0251]
[1721866142022,5.6001,178.57,178.51,6.0251]
[1721866142329,5.6001,178.57,178.52,20.0]
[1721866142542,17.75256494,178.61,178.52,20.0]
[1721866142748,45.0,178.6,178.52,20.0]
[1721866142908,41.28,178.59,178.52,20.0]
[1721866143113,41.28,178.59,178.49,16.6375]
[1721866143114,45.91256494,178.58,178.49,16.6375]
[1721866143315,0.91256494,178.57,178.49,16.6375]
[1721866143909,5.6009,178.54,178.49,16.6375]
[1721866144142,0.91256494,178.57,178.49,16.6375]
[1721866144719,45.0,178.58,178.49,16.6375]
[1721866144921,30.0394,178.59,178.49,16.6375]
[1721866145226,5.5994,178.59,178.5,20.0]
[1721866145634,385.0,178.6,178.5,20.0]
[1721866145813,5.6005,178.56,178.5,20.0]
[1721866146144,42.19256494,178.59,178.5,20.0]
[1721866146317,5.6007,178.55,178.5,20.0]
[1721866146516,5.6003,178.57,178.5,20.0]
[1721866146841,6.51256494,178.58,178.5,20.0]
[1721866147213,0.91256494,178.57,178.5,20.0]
[1721866147939,45.91256494,178.58,178.5,20.0]
[1721866148240,5.5999,178.58,178.5,20.0]
[1721866148544,0.91256494,178.57,178.5,20.0]
[1721866149833,5.6003,178.56,178.5,20.0]
[1721866150639,0.91256494,178.55,178.5,20.0]
[1721866152349,12.23,178.52,178.5,20.0]
[1721866153445,0.91256494,178.56,178.5,20.0]
[1721866153758,12.23,178.54,178.5,20.0]
[1721866153924,6.51186494,178.6,178.5,20.0]
[1721866154128,12.23,178.56,178.5,32.23]
[1721866154340,12.23,178.57,178.51,12.23]
[1721866154644,385.0,178.61,178.52,20.0]
[1721866154645,12.23,178.54,178.52,20.0]
[1721866154847,12.23,178.54,178.5,20.0]
[1721866155345,12.23,178.56,178.5,32.23]
[1721866155557,0.91256494,178.6,178.51,12.23]
[1721866155726,12.23,178.56,178.52,20.0]
[1721866157657,12.23,178.58,178.53,12.23]
[1721866157951,12.23,178.58,178.54,20.0]
[1721866158252,12.23,178.59,178.54,20.0]
[1721866159345,12.23,178.59,178.55,6.4923]
[1721866159751,0.7938657,178.63,178.57,15.3314]
[1721866159945,12.23,178.61,178.57,15.3314]
[1721866160748,12.23,178.6,178.57,15.3314]
[1721866161645,12.23,178.59,178.57,15.3314]
[1721866161848,12.23,178.58,178.56,20.0]
[1721866162030,12.23,178.57,178.56,20.0]
[1721866162228,0.91256494,178.62,178.56,20.0]
[1721866162229,5.5987,178.62,178.56,20.0]
[1721866162440,12.23,178.59,178.56,20.0]
[1721866162755,12.23,178.57,178.55,6.4923]
[1721866164828,12.23,178.57,178.53,15.3314]
[1721866165030,12.23,178.57,178.54,20.0]
[1721866165444,12.23,178.57,178.53,15.3314]
[1721866165729,12.23,178.56,178.53,15.3314]
[1721866167034,12.23,178.57,178.53,15.3314]
[1721866171232,12.23,178.58,178.53,15.3314]
[1721866171960,12.23,178.56,178.53,15.3314]
[1721866172465,12.23,178.55,178.53,15.3314]
[1721866172765,12.23,178.57,178.53,15.3314]
[1721866173060,12.23,178.59,178.53,27.5614]
[1721866173432,12.23,178.58,178.53,27.5614]
[1721866174941,12.23,178.58,178.53,15.3314]
[1721866176046,12.23,178.58,178.53,27.5614]
[1721866177229,12.23,178.58,178.53,15.3314]
[1721866178835,12.23,178.58,178.53,27.5614]
[1721866179258,12.23,178.58,178.53,15.3314]
[1721866182241,12.23,178.56,178.53,15.3314]
[1721866183866,12.23,178.56,178.51,6.6491]
[1721866184072,12.23,178.56,178.52,20.0]
[1721866184272,12.23,178.55,178.52,20.0]
[1721866185440,12.23,178.54,178.51,6.6491]
[1721866185641,12.23,178.52,178.48,15.9103]
[1721866186236,12.23,178.53,178.48,15.9103]
[1721866186863,12.23,178.53,178.49,20.0]
[1721866187962,12.23,178.52,178.49,20.0]
[1721866193564,0.91256494,178.58,178.49,32.23]
[1721866193762,12.23,178.54,178.49,32.23]
[1721866193955,12.23,178.53,178.49,20.0]
[1721866200165,12.23,178.55,178.49,32.23]
[1721866200366,12.23,178.55,178.5,12.23]
[1721866200876,12.23,178.55,178.49,32.23]
[1721866201085,12.23,178.54,178.49,20.0]
[1721866201379,12.23,178.53,178.49,20.0]
[1721866203154,12.23,178.52,178.49,20.0]
[1721866204659,12.23,178.53,178.49,20.0]
[1721866204986,12.23,178.52,178.49,20.0]
[1721866205779,12.23,178.5,178.43,15.4795]
[1721866205970,12.23,178.48,178.43,27.7095]
[1721866206367,12.23,178.48,178.43,15.4795]
[1721866206888,12.23,178.47,178.43,15.4795]
[1721866207059,12.23,178.46,178.43,15.4795]
[1721866207785,5.6025,178.49,178.37,16.3459]
[1721866207786,12.23,178.44,178.37,16.3459]
[1721866207990,12.23,178.42,178.38,30.0]
[1721866208191,15.3994,178.49,178.4,12.23]
[1721866208483,12.23,178.45,178.4,12.23]
[1721866209067,12.23,178.45,178.39,12.23]
[1721866209470,12.23,178.44,178.39,12.23]
[1721866210270,12.23,178.44,178.4,20.0]
[1721866210686,0.91256494,178.48,178.4,20.0]
[1721866210687,12.23,178.43,178.4,20.0]
[1721866210858,12.23,178.43,178.39,20.0]
[1721866211787,12.23,178.44,178.39,20.0]
[1721866211957,12.23,178.43,178.38,20.0]
[1721866215563,12.23,178.42,178.38,20.0]
[1721866215761,6.51636494,178.45,178.38,20.0]
[1721866215762,12.23,178.41,178.38,20.0]
[1721866216165,12.23,178.42,178.38,20.0]
[1721866216592,12.23,178.43,178.38,20.0]
[1721866220790,12.23,178.41,178.38,20.0]
[1721866221678,12.23,178.41,178.37,16.3459]
[1721866224290,6.51636494,178.45,178.38,12.23]
[1721866224476,12.23,178.44,178.38,12.23]
[1721866227198,12.23,178.4,178.32,16.3864]
[1721866227402,17.8354,178.4,178.34,12.23]
[1721866227699,12.23,178.39,178.35,20.0]
[1721866228089,12.23,178.4,178.35,20.0]
[1721866228701,12.23,178.4,178.35,32.23]
[1721866231311,0.91256494,178.42,178.35,32.23]
[1721866231476,12.23,178.4,178.35,32.23]
[1721866231678,12.23,178.39,178.35,20.0]
[1721866231977,12.23,178.39,178.34,12.23]
[1721866232176,12.23,178.39,178.35,20.0]
[1721866232498,12.23,178.37,178.32,28.6164]
[1721866232699,12.23,178.37,178.32,16.3864]
[1721866233591,12.23,178.37,178.32,28.6164]
[1721866234080,12.23,178.37,178.33,20.0]
[1721866235194,12.23,178.38,178.33,20.0]
[1721866235393,12.23,178.38,178.33,32.23]
[1721866236199,12.23,178.36,178.33,20.0]
[1721866236413,12.23,178.35,178.33,20.0]
[1721866236703,12.23,178.34,178.3,20.0]
[1721866236893,12.23,178.32,178.28,20.0]
[1721866237080,12.23,178.32,178.27,15.1514]
[1721866237275,12.23,178.31,178.27,15.1514]
[1721866238299,401.84,178.37,178.2,28.8859]
[1721866238300,12.23,178.28,178.2,28.8859]
[1721866238505,12.23,178.25,178.2,16.6559]
[1721866239484,12.23,178.24,178.15,16.3588]
[1721866239678,12.23,178.21,178.15,28.5888]
[1721866240786,6.52226494,178.27,178.17,12.23]
[1721866240985,12.23,178.24,178.19,12.23]
[1721866242007,12.23,178.24,178.18,12.23]
[1721866242189,12.23,178.24,178.19,20.0]
[1721866242979,12.23,178.23,178.19,20.0]
[1721866243187,12.23,178.23,178.17,12.23]
[1721866243383,5.6098,178.26,178.18,32.23]
[1721866243587,12.23,178.24,178.19,12.23]
[1721866244685,0.91256494,178.28,178.19,12.23]
[1721866244890,385.0,178.3,178.22,12.23]
[1721866245079,12.23,178.28,178.23,20.0]
[1721866245281,385.0,178.3,178.25,12.23]
[1721866246002,12.23,178.29,178.23,47.2438]
[1721866246510,13.14256494,178.29,178.23,47.2438]
[1721866246975,12.23,178.29,178.23,47.2438]
[1721866247180,12.23,178.29,178.24,12.23]
[1721866247380,12.23,178.29,178.25,20.0]
[1721866249016,385.0,178.34,178.28,12.23]
[1721866249315,12.23,178.37,178.31,12.23]
[1721866250013,12.23,178.37,178.32,12.23]
[1721866250385,12.23,178.37,178.31,12.23]
[1721866250703,12.23,178.36,178.3,12.23]
[1721866250885,12.23,178.36,178.31,20.0]
[1721866251089,5.6059,178.39,178.31,20.0]
[1721866251297,12.23,178.36,178.31,20.0]
[1721866251897,27.7362,178.41,178.31,32.23]
[1721866252105,12.23,178.38,178.32,12.23]
[1721866252406,12.23,178.38,178.26,12.23]
[1721866252407,12.23,178.33,178.26,12.23]
[1721866252719,29.5821,178.41,178.27,30.0]
[1721866252720,5.6072,178.34,178.27,30.0]
[1721866252882,12.23,178.32,178.27,30.0]
[1721866253493,12.23,178.31,178.25,27.7606]
[1721866253698,12.23,178.31,178.26,20.0]
[1721866255500,12.23,178.3,178.26,20.0]
[1721866256397,12.23,178.29,178.19,23.0779605]
[1721866256594,12.23,178.29,178.21,12.23]
[1721866256595,12.23,178.26,178.21,12.23]
[1721866256799,12.23,178.26,178.2,42.23]
[1721866257194,12.23,178.25,178.2,42.23]
[1721866257516,12.23,178.25,178.2,12.23]
[1721866258392,12.23,178.25,178.21,20.0]
[1721866258794,12.23,178.24,178.18,12.23]
[1721866259095,12.23,178.24,178.15,15.951]
[1721866259096,12.23,178.21,178.15,15.951]
[1721866259291,12.23,178.21,178.15,28.181]
[1721866260397,12.23,178.21,178.11,2.28884891]
[1721866260593,12.23,178.19,178.13,30.0]
[1721866260918,12.23,178.19,178.14,12.23]
[1721866261109,12.23,178.2,178.15,12.23]
[1721866261430,430.0,178.25,178.16,12.23]
[1721866261720,12.23,178.23,178.17,12.23]
[1721866262097,385.0,178.25,178.22,12.23]
[1721866262323,24.52,178.27,178.1,1.12206291]
[1721866262491,17.75256494,178.26,178.09,1.12255049]
[1721866262692,5.6113,178.21,178.08,1.12255026]
[1721866263016,5.6109,178.23,178.08,1.12255026]
[1721866263204,0.91256494,178.23,178.08,1.12255026]
[1721866263524,0.91256494,178.23,178.1,30.0]
[1721866263702,25.43256494,178.27,178.11,21.12233997]
[1721866263902,45.0,178.26,178.12,45.0]
[1721866264094,45.0,178.26,178.13,21.12234076]
[1721866264819,5.6101,178.25,178.13,21.12234076]
[1721866265712,5.6101,178.25,178.14,16.2387]
[1721866265918,5.6101,178.25,178.15,20.0]
[1721866266495,24.52,178.27,178.15,20.0]
[1721866266701,5.6098,178.26,178.16,51.1848]
[1721866267011,6.52276494,178.25,178.16,6.1848]
[1721866267328,6.52276494,178.25,178.17,20.0]
[1721866267501,5.6104,178.24,178.17,20.0]
[1721866267699,0.91256494,178.23,178.17,20.0]
[1721866267903,0.91256494,178.27,178.15,20.0]
[1721866268115,0.91256494,178.26,178.15,20.0]
[1721866268806,5.611,178.22,178.15,20.0]
[1721866270199,5.611,178.22,178.14,16.2387]
[1721866270399,0.91256494,178.21,178.14,16.2387]
[1721866270623,0.91256494,178.21,178.12,6.1848]
[1721866271500,5.611,178.22,178.12,6.1848]
[1721866271715,0.91256494,178.23,178.12,6.1848]
[1721866271916,6.52326494,178.23,178.13,20.0]
[1721866274830,15.5096,178.22,178.13,20.0]
[1721866275026,15.5096,178.22,178.1,46.0312]
[1721866275027,15.5096,178.22,178.11,20.0]
[1721866275217,15.5096,178.22,178.12,1.12252481]
[1721866275527,21.1207,178.22,178.11,20.0]
[1721866275725,5.6114,178.21,178.11,20.0]
[1721866276037,15.5096,178.22,178.11,20.0]
[1721866276211,5.6117,178.2,178.11,20.0]
[1721866276417,15.5096,178.22,178.11,20.0]
[1721866276418,5.612,178.19,178.11,20.0]
[1721866276615,6.52456494,178.19,178.11,20.0]
[1721866277405,5.6116,178.2,178.11,20.0]
[1721866277825,5.6121,178.19,178.11,20.0]
[1721866278131,70.43256494,178.18,178.06,15.7067]
[1721866278307,5.6132,178.15,178.07,30.0]
[1721866278502,0.91256494,178.14,178.07,30.0]